[Event "AUT Bundesliga 2021-22"]
[Site "Graz"]
[Date "2022.04.23"]
[Round "11.13"]
[White "Krassowizkij, Jaroslaw"]
[Black "Berkes, Ferenc"]
[Result "1/2-1/2"]
[ECO "D11"]
[WhiteElo "2449"]
[BlackElo "2660"]
[Annotator "TA"]
[PlyCount "106"]
[EventDate "2021.01.17"]
[EventType "team-tourn"]
[EventCountry "AUT"]
[SourceTitle "playchess.com"]
[Source "ChessBase"]
[SourceQuality "1"]
[TimeControl "40/5400+30:1800+30"]

{[%evp 9,106,29,30,16,16,14,20,13,23,19,20,19,11,9,8,10,33,20,66,14,22,0,12,0,0,0,0,0,0,0,0,0,0,0,0,0,0,0,0,0,0,0,0,0,0,0,0,0,0,2,13,0,0,0,0,0,0,0,0,0,0,0,0,0,0,0,0,0,0,0,0,0,0,0,0,0,0,0,0,0,0,0,0,0,0,0,0,0,0,0,0,0,0,0,0,0,0,0,0]} 1. d4 {[%emt 0:00:03]} d5 {[%emt 0:00:05]} 2. c4 {[%emt 0:00:05]} c6 {[%emt 0:00:03]} 3. Nf3 {[%emt 0:00:33]} Nf6 {[%emt 0:00:06]} 4. e3 {[%emt 0:00:25]} a6 {[%emt 0:00:28]} 5. Nc3 {[%emt 0:00:41]} Bf5 {[%emt 0:00:07]} 6. Bd3 {D15: Slav Defence: 4 Nc3 a6 and gambit lines after 4 Nc3 dxc4.} Bxd3 {[%emt 0:00:17]} 7. Qxd3 {[%emt 0:01:02]} e6 {[%emt 0:00:09]} 8. O-O {[%emt 0:00:18]} Bb4 {[%emt 0:00:25]} 9. Bd2 {[%emt 0:02:29][%cal Oc3d5] And now Nxd5! would win.} O-O {[%emt 0:01:05]} 10. a3 Ba5 {[%emt 0:10:32]} 11. b4 {[%emt 0:05:24]} Bc7 {[%emt 0:00:27]} 12. e4 {[%emt 0:00:04]} h6 {[%emt 0:03:11] [#]} 13. Rfe1 $146 {[%emt 0:26:11]} ({Predecessor:} 13. a4 Re8 14. Rfe1 Nxe4 15. Nxe4 dxe4 16. Qxe4 Nd7 17. Bc3 Nf6 18. Qe2 b5 19. axb5 axb5 20. cxb5 {½-½ (29) L'Ami,E (2614)-Postny,E (2653) Germany 2015}) 13... Nbd7 (13... dxe4 $11 {is more appropriate.} 14. Nxe4 Nxe4 15. Qxe4 (15. Rxe4 Nd7 $11) 15... Nd7) 14. exd5 {[%emt 0:14:25]} ({White should try} 14. cxd5 $14 cxd5 15. e5) 14... exd5 $11 {[%emt 0:01:57] The position is equal.} 15. cxd5 {[%emt 0:00:33]} cxd5 {[%emt 0:05:24]} 16. Ne5 {[%emt 0:08:56]} Re8 {[%emt 0:00:07][%cal Rc7e5]} 17. Qf5 {[%emt 0:02:41]} Nxe5 {[%emt 0:14:59]} 18. dxe5 {[%emt 0:00:52]} Ne4 {[%emt 0:00:07]} 19. Nxe4 {[%emt 0:01:31][%cal Oe4f6] [#] Hoping for Nf6+!} Rxe5 {[%emt 0:00:08]} 20. Nf6+ $1 {[%emt 0:02:59]} Qxf6 {[%emt 0:01:23]} 21. Qxf6 {[%emt 0:00:46]} gxf6 {[%emt 0:00:07]} 22. Rac1 {[%emt 0:05:03]} Rae8 {[%emt 0:05:46]} 23. Kf1 {[%emt 0:19:14]} Rxe1+ {[%emt 0:06:27]} 24. Bxe1 {[%emt 0:00:01][%mdl 4096] Endgame KRB-KRB} Be5 {[%emt 0:03:17]} (24... Bxh2 25. g3 $16) 25. b5 {[%emt 0:01:01]} axb5 {[%emt 0:03:30]} ({Much less strong is} 25... Bxh2 26. g3 $16) 26. Rc5 {[%emt 0:00:55][%csl LRb5,LRd5]} Rd8 {[%emt 0:00:12]} 27. Ke2 {[%emt 0:01:09]} h5 {[%emt 0:02:48]} 28. Rxb5 {[%emt 0:00:12]} Rd7 {[%emt 0:00:07]} 29. g3 Kg7 30. f4 {[%emt 0:03:28]} Bd4 {[%emt 0:01:55]} 31. Bf2 {[%emt 0:00:40]} Bxf2 {[%emt 0:04:54]} 32. Kxf2 {[%emt 0:00:01] KR-KR} Kg6 {[%emt 0:00:09]} 33. Ke3 {[%emt 0:01:22]} Re7+ {[%emt 0:21:04]} 34. Kf2 {[%emt 0:01:23]} d4 {[%emt 0:04:45]} 35. Rd5 {[%emt 0:00:27]} Re4 {[%emt 0:00:45]} 36. h4 {[%emt 0:00:52]} b6 {[%emt 0:02:23]} 37. a4 {[%emt 0:02:26]} d3 {[%emt 0:00:42]} 38. Rxd3 {[%emt 0:00:17]} Rxa4 {[%emt 0:01:45]} 39. Rb3 {[%emt 0:00:31]} Kf5 {[%emt 0:01:46]} 40. Kf3 {[%emt 0:00:00]} Rc4 {[%emt 0:00:00]} 41. Rxb6 {[%emt 0:03:38]} Rc3+ {[%emt 0:02:41]} 42. Kg2 {[%emt 0:01:24]} Kg4 {[%emt 0:03:14]} 43. Rxf6 {[%emt 0:00:09]} Rc2+ {[%emt 0:02:36]} 44. Kf1 {[%emt 0:00:09]} Kf3 {[%emt 0:00:06][%cal Rc2c1] [#]} 45. Ke1 {[%emt 0:00:23]} Re2+ {[%emt 0:00:08]} 46. Kf1 {[%emt 0:01:00]} Ra2 {[%emt 0:01:04][%cal Ra2a1]} 47. Ke1 {[%emt 0:00:08]} Ra1+ {[%emt 0:02:14]} 48. Kd2 {[%emt 0:00:09]} Ra7 {[%emt 0:00:05]} 49. Rf5 {[%emt 0:00:54]} Kxg3 {[%emt 0:00:08]} 50. Rxh5 {[%emt 0:00:05]} Kxf4 {[%emt 0:00:06]} 51. Rh8 {[%emt 0:12:55]} Re7 {[%emt 0:01:12]} 52. h5 {[%emt 0:00:31]} Kg5 {[%emt 0:00:08]} 53. Rh7 {[%emt 0:02:55]} Re8 {[%emt 0:00:27] Weighted Error Value: White=0.04 (flawless) /Black=0.02 (flawless)} 1/2-1/2

[Event "AUT Bundesliga 2021-22"]
[Site "Graz"]
[Date "2022.04.23"]
[Round "11.14"]
[White "Markus, Robert"]
[Black "Kvetny, Mark"]
[Result "1/2-1/2"]
[ECO "E10"]
[WhiteElo "2625"]
[BlackElo "2417"]
[Annotator "TA"]
[PlyCount "76"]
[EventDate "2021.01.17"]
[EventType "team-tourn"]
[EventCountry "AUT"]
[SourceTitle "playchess.com"]
[Source "ChessBase"]
[SourceQuality "1"]
[TimeControl "40/5400+30:1800+30"]

{[%evp 12,76,19,25,30,23,33,27,37,0,0,0,0,0,0,0,0,0,0,-10,0,-12,-8,-39,-42,-75,-94,-82,-73,-81,-89,-79,-89,-110,-109,-133,-102,-127,-124,-150,-117,-133,-135,-122,-123,-116,-138,-180,-179,-160,-47,-50,-57,-122,-122,-119,-121,-114,-110,-97,-82,-132,0,-115,0,-135,0]} 1. d4 {[%emt 0:00:04]} Nf6 {[%emt 0:00:04]} 2. c4 {[%emt 0:00:08]} e6 {[%emt 0:00:04]} 3. Nf3 {[%emt 0:00:05]} d5 {[%emt 0:00:08]} 4. e3 {[%emt 0:00:05]} c5 {[%emt 0:07:32]} 5. cxd5 {[%emt 0:00:50]} exd5 {[%emt 0:00:07]} 6. Bb5+ {[%emt 0:00:17]} Nc6 {[%emt 0:01:42]} 7. O-O {[%emt 0:00:36]} cxd4 $1 {[%emt 0:01:56][%mdl 4] is recently more successful than 7...Bd6. D30: Queen's Gambit Declined: Systems without Nc3.} 8. exd4 {[%emt 0:02:53]} Bd6 {[%emt 0:07:56]} 9. Re1+ {[%emt 0:13:16]} Be6 {[%emt 0:00:15] [#] White has an edge.} 10. Ng5 $146 {[%emt 0:01:30]} ({Predecessor:} 10. Bg5 O-O 11. Nc3 Rb8 12. Rc1 h6 13. Bh4 Bf4 14. Ra1 Re8 15. Ne5 Qb6 16. Bxc6 bxc6 {0-1 (36) Tibbert,P (1763)-Lindberg,W (1747) ICCF email 2015}) 10... O-O {[%emt 0:02:28]} 11. Nxe6 {[%emt 0:00:05]} fxe6 {[%emt 0:00:04]} 12. Nc3 {[%emt 0:00:05] Prevents Ne4.} Qc7 {[%emt 0:16:00]} 13. g3 {[%emt 0:03:02]} Qf7 {[%emt 0:05:39][%cal Of6g4]} 14. Be3 {[%emt 0:04:00]} h5 {[%emt 0:07:55][%cal Bh7h5,Bh5h4][%mdl 32]} 15. Be2 {[%emt 0:15:15]} h4 {[%emt 0:06:12]} 16. Bf3 {[%emt 0:08:22]} Ne7 {[%emt 0:03:01]} 17. Bg2 {[%emt 0:05:32]} Nf5 {[%emt 0:03:11]} 18. Bg5 {[%emt 0:07:40] Bxf6 is the strong threat.} hxg3 {[%emt 0:08:33]} 19. fxg3 {[%emt 0:01:14] Strongly threatening Bxf6.} Nh7 {[%emt 0:02:50]} 20. Bf4 {[%emt 0:08:21]} Bxf4 {[%emt 0:00:51]} 21. gxf4 {[%emt 0:00:06][%cal Oe1e6]} Nf6 {[%emt 0:00:15]} 22. Qd2 {[%emt 0:05:23]} Rae8 {[%emt 0:02:31]} 23. Rf1 {[%emt 0:00:32]} Nh5 {[%emt 0:01:47] Pair of Knights!} 24. Rf2 {[%emt 0:03:25]} Qg6 {[%emt 0:04:23]} 25. Ne2 {[%emt 0:03:11]} Rf6 {[%emt 0:01:28]} 26. Kh1 {[%emt 0:03:29]} Qh6 {[%emt 0:02:35]} 27. Bf3 {[%emt 0:03:19]} Nhg3+ {[%emt 0:03:16]} 28. Nxg3 {[%emt 0:02:17]} Nxg3+ {[%emt 0:00:02]} 29. Kg1 {[%emt 0:00:20]} Nf5 {[%emt 0:00:15]} 30. Raf1 {[%emt 0:00:15]} Ref8 {[%emt 0:03:39]} (30... Rg6+ $17 31. Rg2 Rxg2+ 32. Bxg2 Rc8) 31. Bg4 $1 $15 {[%emt 0:00:44]} Nd6 {[%emt 0:01:02] Hoping for ...Ne4.} 32. Rf3 {[%emt 0:00:23]} (32. Rg2 $15) 32... Rg6 $17 {[%emt 0:02:39]} 33. Qg2 {[%emt 0:01:54]} Qh4 $36 {[%emt 0:00:07][%mdl 2048] Keeping White busy.} 34. h3 {[%emt 0:00:25]} Nf5 {[%emt 0:01:05]} 35. Rd3 {[%emt 0:01:09]} Nh6 {[%emt 0:01:24][%cal Rh6g4]} 36. Rg3 {[%emt 0:00:22]} (36. Qg3 $142 Qf6 37. Kh1) 36... Nf5 {[%emt 0:00:15]} 37. Rd3 {[%emt 0:00:06]} Nh6 {[%emt 0:02:51][%cal Rh6g4]} 38. Rg3 {[%emt 0:00:06] [#]} Nf5 {[%emt 0:00:18] Weighted Error Value: White=0.11 (very precise) /Black=0.18 (very precise)} (38... Rc8 $1 $17 39. b3 {[#]} (39. Bxe6+ $2 Rxe6 40. Rxg7+ Kh8 $19) 39... Rc2 $3 {[%mdl 512]}) 1/2-1/2

[Event "AUT Bundesliga 2021-22"]
[Site "Graz"]
[Date "2022.04.23"]
[Round "11.15"]
[White "Spitzl, Vinzent"]
[Black "Nagy, Gabor"]
[Result "0-1"]
[ECO "B32"]
[WhiteElo "2319"]
[BlackElo "2530"]
[Annotator "TA"]
[PlyCount "72"]
[EventDate "2021.01.17"]
[EventType "team-tourn"]
[EventCountry "AUT"]
[SourceTitle "playchess.com"]
[Source "ChessBase"]
[SourceQuality "1"]
[TimeControl "40/5400+30:1800+30"]

{[%evp 17,72,39,42,40,76,89,77,56,91,70,100,100,120,99,104,65,143,83,172,97,147,105,139,111,156,145,176,179,176,179,197,165,165,171,178,174,155,166,210,111,98,-116,-126,-119,-118,-100,-109,-183,-183,-180,-183,-234,-250,-561,-550,-514,-462]} 1. e4 {[%emt 0:00:04]} c5 {[%emt 0:00:16]} 2. Nf3 {[%emt 0:00:06]} Nc6 {[%emt 0:00:29]} 3. d4 {[%emt 0:00:12]} cxd4 {[%emt 0:00:10]} 4. Nxd4 {[%emt 0:00:07]} Qb6 {[%emt 0:00:42]} 5. Nb3 {[%emt 0:00:21]} Nf6 {[%emt 0:00:10]} 6. Nc3 {[%emt 0:00:19]} e6 {[%emt 0:00:21]} 7. Be3 {[%emt 0:00:32]} Qc7 {[%emt 0:00:13]} 8. a3 {[%emt 0:00:49]} a6 {[%emt 0:00:35]} 9. f4 {[%emt 0:00:52]} d6 {[%emt 0:00:11]} 10. g4 {[%emt 0:01:54][%cal Bg2g4,Bg4g5][%mdl 32] outshines the older 10.Be2. B33: Sicilian: Pelikan and Sveshnikov Variations.} b5 {[%emt 0:00:42]} 11. g5 {[%emt 0:00:37]} Nd7 {[%emt 0:00:08]} 12. h4 {[%emt 0:00:56][%cal Bh2h4,Bh4h5][%mdl 32] White is better.} Bb7 {[%emt 0:01:15]} 13. Qe2 {[%emt 0:05:01] [#]} O-O-O $146 {[%emt 0:08:02]} ({Predecessor:} 13... Na5 14. Nxa5 Qxa5 15. Bd2 Rc8 16. Rd1 Qc7 17. f5 exf5 18. exf5+ Ne5 19. Bg2 Be7 {0-1 (39) Dastan,B (2370)-Czebe,A (2481) Budapest 2012}) 14. O-O-O {[%emt 0:04:14]} Kb8 {[%emt 0:03:08]} 15. h5 {[%emt 0:08:38]} Be7 {[%emt 0:03:14]} 16. Kb1 {[%emt 0:02:17]} Rhe8 {[%emt 0:02:01]} ({Better is} 16... h6 $1 $14) 17. Qf2 {[%emt 0:09:10]} (17. Bh3 $142) 17... Ka8 {[%emt 0:07:24]} (17... h6 $16 {keeps fighting.}) 18. Be2 {[%emt 0:07:52]} ({White should try} 18. h6 $18 g6 19. Bg2) 18... Rc8 {[%emt 0:02:57]} ({Black should play} 18... h6) 19. Rhg1 {[%emt 0:14:21]} Bf8 {[%emt 0:01:57]} 20. g6 {[%emt 0:05:11]} fxg6 {[%emt 0:01:45]} 21. hxg6 {[%emt 0:02:08]} hxg6 {[%emt 0:00:13]} 22. Rxg6 {[%emt 0:00:39]} Nf6 {[%emt 0:00:08]} 23. Bf3 {[%emt 0:03:30]} Qf7 {[%emt 0:05:28]} 24. Rgg1 {[%emt 0:01:09][%cal Oe4e5] [#] Threatens to win with e5!} e5 {[%emt 0:00:18]} 25. Nd5 {[%emt 0:09:07]} exf4 {[%emt 0:03:49] Strongly threatening ...Nxd5.} 26. Nb6+ {[%emt 0:00:54]} ({Not} 26. Nxf4 Ne5 27. Nd4 Nxf3 28. Qxf3 Bxe4 $17) (26. Bxf4 Nxd5 27. exd5 Ne5 28. Bxe5 dxe5 $16) 26... Kb8 {[%emt 0:00:05]} 27. Bxf4 {[%emt 0:00:26]} (27. Nxc8 $2 fxe3 28. Qxe3 Rxc8 $19) 27... Rc7 {[%emt 0:00:07]} 28. Rge1 {[%emt 0:12:54]} ({Don't blunder} 28. Bxd6 $2 Bxd6 29. Rxd6 Nxe4 $19) (28. Nd5 $18) 28... Ne5 $16 {[%emt 0:01:39]} 29. Bg3 $2 {[%emt 0:00:35] [#]} (29. Bxe5 $16 {and life is bright.} Ng4 30. Qg1 (30. Nd7+ $2 Rxd7 31. Bxg4 Qxf2 $19) 30... Nxe5 31. Bg2) 29... Nxf3 $17 {[%emt 0:02:27]} 30. Qxf3 {[%emt 0:00:45]} Bxe4 {[%emt 0:00:34]} 31. Rxe4 {[%emt 0:00:04]} Nxe4 {[%emt 0:00:36]} 32. Qd3 {[%emt 0:03:16]} (32. Qg2 $17 {was worth a try.}) 32... Qh5 $19 {[%emt 0:03:37]} 33. Be1 {[%emt 0:01:40]} Nf6 {[%emt 0:03:20]} 34. Bf2 {[%emt 0:04:02]} (34. Bc3 $142) 34... Qe2 {[%emt 0:01:48]} 35. Qd4 {[%emt 0:00:04]} (35. Qxe2 {is tougher.} Rxe2 36. Bd4) 35... Qxc2+ {[%emt 0:01:22]} 36. Ka2 {[%emt 0:00:03]} Re4 {[%emt 0:00:08] Weighted Error Value: White=0.51/Black=0.21 (precise)} 0-1

[Event "AUT Bundesliga 2021-22"]
[Site "Graz"]
[Date "2022.04.23"]
[Round "11.16"]
[White "Mesaros, Florian"]
[Black "Richter, Nils"]
[Result "1/2-1/2"]
[ECO "D37"]
[WhiteElo "2419"]
[BlackElo "2320"]
[Annotator "TA"]
[PlyCount "107"]
[EventDate "2021.01.17"]
[EventType "team-tourn"]
[EventCountry "AUT"]
[SourceTitle "playchess.com"]
[Source "ChessBase"]
[SourceQuality "1"]
[TimeControl "40/5400+30:1800+30"]

{[%evp 11,107,24,11,15,15,9,11,18,21,10,6,0,28,31,28,31,64,29,23,-7,0,0,0,-5,-4,-8,0,0,0,0,0,0,0,0,29,0,0,0,0,0,0,0,0,0,0,-13,-20,-70,-18,-54,-13,-13,-6,-13,0,0,8,0,0,0,0,0,0,0,14,0,0,0,0,0,21,21,21,21,21,21,51,44,54,64,172,0,0,0,0,0,0,0,0,0,0,0,0,0,0,0,-28000,-28000]} 1. d4 {[%emt 0:00:08]} Nf6 {[%emt 0:00:05]} 2. c4 {[%emt 0:00:06]} e6 {[%emt 0:00:06]} 3. Nf3 {[%emt 0:00:09]} d5 {[%emt 0:00:08]} 4. Nc3 {[%emt 0:00:14]} Nbd7 {[%emt 0:00:12]} 5. Bf4 {[%emt 0:01:35]} dxc4 {[%emt 0:00:19]} 6. e3 {[%emt 0:00:48]} Nb6 {[%emt 0:00:29] [#]} 7. Bxc4 $1 {[%emt 0:05:22][%mdl 64] Decoy. D37: Queen's Gambit Declined: 5 Bf4.} Nxc4 {[%emt 0:00:30]} 8. Qa4+ {[%emt 0:00:07]} c6 {[%emt 0:00:19]} 9. Qxc4 {[%emt 0:00:10] The position is equal.} Nd5 {[%emt 0:00:23]} 10. Bg3 {[%emt 0:05:07]} Qb6 {[%emt 0:00:28]} 11. Qe2 {[%emt 0:05:08]} Nxc3 {[%emt 0:00:32]} 12. bxc3 {[%emt 0:00:14]} Qb5 {[%emt 0:00:12]} 13. a4 {[%emt 0:11:19]} Qxe2+ {[%emt 0:00:49]} 14. Kxe2 {[%emt 0:00:02] [#]} b6 $146 {[%emt 0:02:25]} ({Predecessor:} 14... Be7 15. Rhb1 f6 16. a5 Kf7 17. Nd2 c5 18. Ne4 cxd4 19. cxd4 Rd8 20. f3 Ke8 {1-0 (52) Faizrakhmanov,R (2450)-Goganov,A (2602) Sochi 2020}) 15. a5 {[%emt 0:15:23] aiming for axb6.} Ba6+ {[%emt 0:01:07]} 16. Kd2 {[%emt 0:02:12] Hoping for axb6.} b5 {[%emt 0:00:13]} 17. Ng5 {[%emt 0:07:27]} Rd8 {[%emt 0:17:28]} 18. Kc2 {[%emt 0:05:50]} Be7 {[%emt 0:05:03]} 19. Ne4 {[%emt 0:00:58]} f6 {[%emt 0:00:33]} 20. Rhd1 {[%emt 0:05:40]} Kf7 {[%emt 0:01:41]} 21. f3 {[%emt 0:02:22]} h5 {[%emt 0:09:56]} 22. h4 {[%emt 0:01:53]} Rh6 {[%emt 0:05:13]} 23. Bf4 {[%emt 0:04:18]} Rhh8 {[%emt 0:02:22]} 24. Bg3 {[%emt 0:00:42]} Rd5 {[%emt 0:11:15]} 25. Nc5 {[%emt 0:06:31]} Bxc5 {[%emt 0:06:21]} 26. e4 {[%emt 0:00:17]} Bd6 {[%emt 0:06:34][%cal Od6g3]} 27. Be1 {[%emt 0:02:15]} Bc8 {[%emt 0:00:37]} 28. Ra2 {[%emt 0:02:54]} a6 {[%emt 0:01:30]} 29. Kb3 {[%emt 0:05:49] [#]} (29. Raa1 $11) 29... Bd7 {[%emt 0:00:36]} 30. Re2 {[%emt 0:01:06]} Bc7 {[%emt 0:01:31] And now ...Rd6 would win.} 31. exd5 {[%emt 0:00:12]} cxd5 {[%emt 0:00:11]} 32. Bd2 {[%emt 0:01:26]} Rc8 {[%emt 0:04:05][%mdl 1024] Black has compensation.} 33. g4 {[%emt 0:01:34]} Rh8 {[%emt 0:06:20]} (33... Bxa5 34. Ra1 Bc7 35. Rxa6 $16) 34. Rh1 {[%emt 0:00:42]} Bc8 {[%emt 0:03:49]} ({Much less strong is} 34... Bxa5 35. Ra1 Bd8 36. Rxa6 $16) 35. Kb4 {[%emt 0:00:59]} Bd6+ {[%emt 0:01:33]} 36. Kb3 {[%emt 0:00:04]} Bc7 {[%emt 0:00:07]} 37. Rg2 {[%emt 0:01:42]} Bxa5 {[%emt 0:02:56]} 38. Bf4 {[%emt 0:00:52]} hxg4 {[%emt 0:04:02]} 39. fxg4 {[%emt 0:00:24]} g5 {[%emt 0:04:07]} 40. Bd6 {[%emt 0:00:00]} Bd8 {[%emt 0:00:00]} 41. Rgh2 {[%emt 0:10:30]} gxh4 {[%emt 0:08:35]} 42. Rxh4 {[%emt 0:00:21]} Rxh4 {[%emt 0:00:06]} 43. Rxh4 $11 {[%emt 0:00:05][%mdl 4096] Endgame Black must now prevent Rh8. KRB-KB} Kg7 {[%emt 0:00:23] Against Rh8} 44. Kb4 {[%emt 0:03:01]} Bd7 {[%emt 0:01:54]} 45. Kc5 $1 {[%emt 0:06:27] Against Bb6+} a5 {[%emt 0:01:40] [#]} (45... Be8 $14) 46. Bf4 $2 {[%emt 0:04:46]} (46. Bf8+ $1 $18 {[%mdl 512]} Kg8 {[#]} 47. Kd6 $1) 46... Be7+ {[%emt 0:00:50]} 47. Kb6 {[%emt 0:00:06]} b4 {[%emt 0:02:47]} 48. Kxa5 {[%emt 0:07:07]} bxc3 {[%emt 0:00:20]} 49. Rh3 {[%emt 0:02:09]} e5 {[%emt 0:00:45]} 50. dxe5 {[%emt 0:01:08]} fxe5 {[%emt 0:00:07]} 51. Bxe5+ {[%emt 0:00:14]} Bf6 {[%emt 0:00:08]} 52. Bxc3 {[%emt 0:00:26]} Bxg4 $2 {[%emt 0:01:33][%mdl 8192]} (52... Bxc3+ $11 53. Rxc3 Kf6) 53. Rg3 {[%emt 0:00:10]} Bxc3+ {[%emt 0:00:15]} 54. Rxc3 {[%mdl 32768] Weighted Error Value: White=0.09 (flawless) /Black=0.09 (flawless) . An unexpected result.} 1/2-1/2

[Event "AUT Bundesliga 2021-22"]
[Site "Graz"]
[Date "2022.04.23"]
[Round "11.17"]
[White "Neyman, Igor"]
[Black "Poetz, Florian"]
[Result "1-0"]
[ECO "A41"]
[WhiteElo "2325"]
[BlackElo "2424"]
[Annotator "TA"]
[PlyCount "63"]
[EventDate "2021.01.17"]
[EventType "team-tourn"]
[EventCountry "AUT"]
[SourceTitle "playchess.com"]
[Source "ChessBase"]
[SourceQuality "1"]
[TimeControl "40/5400+30:1800+30"]

{[%evp 9,63,32,43,14,10,13,10,11,8,23,28,21,31,38,35,31,35,0,25,23,72,53,32,32,92,55,90,81,81,92,89,78,83,98,168,160,247,227,230,205,218,210,427,409,487,469,639,635,581,560,550,536,783,779,764,754]} 1. d4 {[%emt 0:00:03]} d6 {[%emt 0:00:16]} 2. Nf3 {[%emt 0:00:46]} Bg4 {[%emt 0:00:07][%cal Bc8g4,Bg4h5,Bh5g6][%mdl 32]} 3. e4 {[%emt 0:04:18]} Nf6 {[%emt 0:00:23]} 4. Bd3 {[%emt 0:03:10]} e6 {[%emt 0:10:22]} 5. h3 {[%emt 0:02:30]} Bh5 {[%emt 0:00:15]} 6. Be3 {[%emt 0:08:23] A41: 1 d4 d6: Tartakower System and Modern Defence.} d5 {[%emt 0:03:21]} 7. Nbd2 {[%emt 0:04:59]} Bg6 {[%emt 0:14:58][%cal Rd5e4] [#]} 8. Bg5 $146 {[%emt 0:11:11] The position is equal.} ({Predecessor:} 8. e5 Nfd7 9. Qe2 c5 10. c3 Nc6 11. O-O Be7 12. a3 Bxd3 13. Qxd3 c4 14. Qe2 {0-1 (47) Holmela,K-Blasco Frasquet,R (2090) Brno 1998}) 8... Be7 {[%emt 0:01:54][%cal Rd5e4]} 9. Qe2 {[%emt 0:04:22]} O-O {[%emt 0:11:25]} 10. e5 {[%emt 0:08:39] [#] Bxg6 is the strong threat.} Nfd7 {[%emt 0:00:42]} 11. Bxe7 {[%emt 0:01:18]} Qxe7 {[%emt 0:00:06]} 12. Bxg6 {[%emt 0:02:09]} fxg6 {[%emt 0:00:24]} 13. O-O {[%emt 0:02:20]} c5 {[%emt 0:07:59]} 14. c4 {[%emt 0:03:43][%cal Bc2c4,Bc4c5][%mdl 32]} (14. Qb5 $5 {[%cal Rb5b7]}) 14... Nb6 {[%emt 0:00:22]} (14... Nc6 $11) 15. dxc5 {[%emt 0:01:15]} Qxc5 {[%emt 0:00:02]} 16. Rac1 {[%emt 0:01:21]} Qe7 {[%emt 0:03:18]} (16... Nc6 $14) 17. c5 {[%emt 0:05:37] White stays focused until the end.} N6d7 {[%emt 0:04:39]} 18. Qb5 {[%emt 0:01:00]} Nc6 {[%emt 0:00:39]} 19. Qxb7 {[%emt 0:01:35]} Rfc8 {[%emt 0:03:06]} 20. Nb3 {[%emt 0:02:08]} Rab8 {[%emt 0:09:27]} 21. Qa6 {[%emt 0:00:18] &Bianco is more active.} Nb4 {[%emt 0:00:43]} (21... Qe8 $16 {was necessary.}) 22. Qd6 $18 {[%emt 0:03:20]} ({Weaker is} 22. Qxa7 Ra8 23. Qb7 Rab8 $11) 22... Qxd6 {[%emt 0:03:43]} (22... Qe8 $16) 23. cxd6 {[%emt 0:00:51]} Nd3 {[%emt 0:01:35]} 24. Rxc8+ {[%emt 0:01:10]} Rxc8 {[%emt 0:00:02]} 25. Nbd4 {[%emt 0:01:25]} Re8 $2 {[%emt 0:03:37] [#]} (25... N7xe5 26. Nxe5 (26. Nxe6 Rc6 $16) 26... Nxe5) 26. Nc6 {[%emt 0:02:24]} h6 {[%emt 0:00:34]} 27. Rd1 {[%emt 0:00:44] White is clearly winning.} Nxb2 {[%emt 0:01:10]} 28. Rb1 {[%emt 0:00:22]} Nd3 {[%emt 0:00:40]} 29. Rb7 {[%emt 0:00:37]} N3c5 {[%emt 0:00:09]} 30. Rxa7 {[%emt 0:00:27]} Rf8 {[%emt 0:00:32]} 31. Nfd4 {[%emt 0:02:21]} Nb6 {[%emt 0:02:26]} 32. a4 {[%emt 0:03:08] Weighted Error Value: White=0.06 (flawless) /Black=0.34} 1-0